[Event "NOR-chT Codanserien 2017-18"]
[Site "Oslo"]
[Date "2017.12.02"]
[Round "2"]
[White "Kaasen, Tor Fredrik"]
[Black "Nordquelle, Daniel"]
[Result "0-1"]
[ECO "D37"]
[WhiteElo "2347"]
[BlackElo "2188"]
[Annotator "ChessBase"]
[PlyCount "100"]
[EventDate "2017.??.??"]
[EventType "team-tourn"]
[EventCountry "NOR"]
[SourceTitle "playchess.com"]
[Source "ChessBase"]
[SourceQuality "1"]
[TimeControl "40/5400+30:1800+30"]

1. d4 {[%emt 0:02:24]} d5 {[%emt 0:01:36]} 2. c4 {[%emt 0:00:18]} e6 {[%emt 0:00:06]} 3. Nf3 {[%emt 0:00:05]} Nf6 {[%emt 0:00:57]} 4. Nc3 {[%emt 0:02:17]} Nbd7 {[%emt 0:00:58]} 5. Bg5 {[%emt 0:00:45]} h6 {[%emt 0:00:33]} 6. Bh4 {[%emt 0:00:30]} Bb4 {[%emt 0:00:18]} 7. e3 {[%emt 0:02:20]} g5 {[%emt 0:01:48]} 8. Bg3 {[%emt 0:00:18]} Ne4 {[%emt 0:00:07]} 9. Qb3 {[%emt 0:03:59]} a5 {[%emt 0:40:32]} 10. cxd5 {[%emt 0:02:54]} exd5 {[%emt 0:01:00]} 11. a3 {[%emt 0:01:00]} Bxc3+ {[%emt 0:04:34]} 12. bxc3 {[%emt 0:00:23]} Nb6 {[%emt 0:04:54]} 13. Bb5+ {[%emt 0:04:00]} Kf8 {[%emt 0:04:06]} 14. Bd3 {[%emt 0:02:58]} Bf5 {[%emt 0:03:24]} 15. Bxe4 {[%emt 0:04:13]} Bxe4 {[%emt 0:01:01]} 16. Qb5 {[%emt 0:01:46]} Kg7 {[%emt 0:04:36]} 17. a4 {[%emt 0:05:58]} c6 {[%emt 0:03:57]} 18. Qb3 {[%emt 0:01:56]} Ra7 {[%emt 0:02:21]} 19. h4 {[%emt 0:03:46]} Nc4 {[%emt 0:07:41]} 20. hxg5 {[%emt 0:21:41]} hxg5 {[%emt 0:00:04]} 21. O-O-O {[%emt 0:00:16]} f6 {[%emt 0:01:50]} 22. Rxh8 {[%emt 0:01:05]} Kxh8 {[%emt 0:01:49]} 23. Nd2 {[%emt 0:03:58]} Bd3 {[%emt 0:02:03]} 24. Nxc4 {[%emt 0:01:53]} dxc4 {[%emt 0:01:20]} 25. Qa3 {[%emt 0:01:19]} Ra6 {[%emt 0:04:23]} 26. Bd6 {[%emt 0:07:33]} Rb6 {[%emt 0:02:09]} 27. Be7 {[%emt 0:02:59]} Rb1+ {[%emt 0:00:44]} 28. Kd2 {[%emt 0:00:01]} Qb6 {[%emt 0:00:12]} 29. Bxf6+ {[%emt 0:11:26]} Kg8 {[%emt 0:00:02]} 30. e4 {[%emt 0:04:57]} Rb2+ {[%emt 0:03:15]} 31. Ke3 {[%emt 0:00:00]} Qc7 {[%emt 0:00:37]} 32. g3 {[%emt 0:01:43]} Re2+ {[%emt 0:00:33]} 33. Kf3 {[%emt 0:00:03]} Qh7 {[%emt 0:00:55]} 34. Qe7 {[%emt 0:04:06]} Qh5+ {[%emt 0:00:23]} 35. Kg2 {[%emt 0:00:05]} Bxe4+ {[%emt 0:01:04]} 36. Kf1 {[%emt 0:00:01]} Bg2+ {[%emt 0:00:52]} 37. Kxg2 {[%emt 0:00:03]} Rxe7 {[%emt 0:00:06]} 38. Rh1 {[%emt 0:00:04]} Qe2 {[%emt 0:00:20]} 39. Rh8+ {[%emt 0:00:38]} Kf7 {[%emt 0:00:36]} 40. Bxe7 {[%emt 0:00:02]} Kxe7 {[%emt 0:29:42]} 41. Rh7+ {[%emt 0:30:16]} Kd6 {[%emt 0:00:25]} 42. Rxb7 {[%emt 0:00:05]} g4 {[%emt 0:00:21]} 43. Rf7 {[%emt 0:00:52]} Qe4+ {[%emt 0:00:49]} 44. Kh2 {[%emt 0:00:08]} Qc2 {[%emt 0:00:36]} 45. Rf4 {[%emt 0:00:11]} Qxc3 {[%emt 0:00:22]} 46. Rxg4 {[%emt 0:00:10]} Qd2 {[%emt 0:00:14]} 47. Rg6+ {[%emt 0:00:14]} Kd5 {[%emt 0:00:20]} 48. Rg8 {[%emt 0:00:56]} Qxf2+ {[%emt 0:00:10]} 49. Kh3 {[%emt 0:00:20]} c3 {[%emt 0:00:10]} 50. Rd8+ {[%emt 0:00:05]} Ke4 0-1

[Event "NOR-chT Codanserien 2017-18"]
[Site "Oslo"]
[Date "2017.12.02"]
[Round "2"]
[White "Galchenko, Matvey"]
[Black "Andersen, Lars Even"]
[Result "1/2-1/2"]
[ECO "B10"]
[WhiteElo "2340"]
[BlackElo "2302"]
[Annotator "NA"]
[PlyCount "63"]
[EventDate "2017.??.??"]
[EventType "team-tourn"]
[EventCountry "NOR"]
[SourceTitle "playchess.com"]
[Source "ChessBase"]
[SourceQuality "1"]
[TimeControl "40/5400+30:1800+30"]

1. c4 {[%emt 0:00:00]} c6 {[%emt 0:02:42]} 2. e4 {[%emt 0:00:00]} d5 {[%emt 0:00:19]} 3. exd5 {[%emt 0:00:06]} cxd5 {[%emt 0:00:07]} 4. cxd5 {[%emt 0:00:01]} Nf6 {[%emt 0:00:32]} 5. Qa4+ {[%emt 0:00:07]} Nbd7 {[%emt 0:03:13]} 6. Nc3 {[%emt 0:00:54]} g6 {[%emt 0:00:19]} 7. Bc4 {[%emt 0:02:28]} Bg7 {[%emt 0:00:37]} 8. d3 {[%emt 0:00:08]} O-O {[%emt 0:00:24]} 9. Nf3 {[%emt 0:00:03]} Nb6 {[%emt 0:01:02]} 10. Qb3 {[%emt 0:00:21]} Bg4 {[%emt 0:04:31] B10: Caro-Kann: 2 d3 and 2 c4} 11. Ne5 {[%emt 0:00:33]} Qc7 {[%emt 0:01:57]} 12. f4 {[%emt 0:20:15]} Nbd7 {[%emt 0:17:16]} (12... Qc5 13. h3 Bc8 14. Ke2 Nh5 15. Kf3 e6 16. g4 exd5 17. Nxd5 Nxd5 18. Bxd5 Bxe5 19. gxh5 {1-0 (46) Zhigalko,A (2594)-Hovhannisyan,R (2641) Yerevan 2016}) 13. Nxg4 $146 {[%emt 0:09:55]} ({Predecessor:} 13. Nb5 Qb6 14. h3 Nc5 15. Qa3 a6 16. Nd4 Bc8 17. Be3 Qd6 18. Ndc6 Nxd3+ 19. Qxd3 bxc6 20. dxc6 {½-½ (58) Liiva,R (2410)-Edzgveradze,N (2320) Holon 1995}) 13... Nxg4 {[%emt 0:00:16]} 14. h3 {[%emt 0:01:11]} Ngf6 {[%emt 0:06:41]} 15. Be3 {[%emt 0:04:06]} Nh5 {[%emt 0:08:41]} 16. O-O {[%emt 0:06:41]} Ng3 {[%emt 0:05:12]} 17. Rfe1 {[%emt 0:00:59]} Nf5 {[%emt 0:02:21]} 18. Bf2 {[%emt 0:06:28]} Qxf4 {[%emt 0:04:04]} 19. Re4 {[%emt 0:06:53]} Qc7 {[%emt 0:07:08]} 20. Nb5 {[%emt 0:07:59]} Qb8 {[%emt 0:07:54]} 21. g4 $2 {[%emt 0:03:49] [#]} ({White should play} 21. d4 $15) 21... Nc5 $1 {[%emt 0:03:37]} 22. Bxc5 {[%emt 0:11:56]} Qg3+ {[%emt 0:00:16]} 23. Kf1 {[%emt 0:00:25]} Qxh3+ {[%emt 0:01:59]} 24. Ke1 {[%emt 0:02:29] [#]} Ng3 $1 {[%emt 0:11:09]} 25. Re3 $19 {[%emt 0:10:26]} (25. Rxe7 Qf1+ 26. Kd2 Qxa1 27. d6) 25... Qf1+ {[%emt 0:03:23]} 26. Kd2 {[%emt 0:00:02]} Qf2+ {[%emt 0:00:49]} 27. Kd1 {[%emt 0:00:11]} Bh6 {[%emt 0:00:21]} 28. Qc2 {[%emt 0:01:31]} Qf1+ {[%emt 0:05:06]} 29. Re1 {[%emt 0:00:04]} Qf3+ {[%emt 0:00:08]} 30. Re2 {[%emt 0:00:03]} Qf1+ {[%emt 0:01:28]} 31. Re1 {[%emt 0:00:01]} Qf3+ {[%emt 0:00:11]} 32. Re2 {[%emt 0:00:01]} 1/2-1/2

[Event "NOR-chT Codanserien 2017-18"]
[Site "Oslo"]
[Date "2017.12.02"]
[Round "2"]
[White "Persson, Mats"]
[Black "Andersen, Alf R"]
[Result "1/2-1/2"]
[ECO "C00"]
[WhiteElo "2306"]
[BlackElo "2161"]
[Annotator "RC"]
[PlyCount "41"]
[EventDate "2017.??.??"]
[EventType "team-tourn"]
[EventCountry "NOR"]
[SourceTitle "playchess.com"]
[Source "ChessBase"]
[SourceQuality "1"]
[TimeControl "40/5400+30:1800+30"]

1. e4 {[%emt 0:00:00]} e6 {[%emt 0:00:15]} 2. Qe2 {[%emt 0:00:00]} c5 {[%emt 0:02:31]} 3. f4 {[%emt 0:00:00]} Nc6 {[%emt 0:01:46]} 4. Nf3 {[%emt 0:00:06]} Be7 {[%emt 0:04:41]} 5. g3 {[%emt 0:00:32]} d5 {[%emt 0:01:24]} 6. d3 {[%emt 0:00:20]} Nf6 {[%emt 0:03:42]} 7. Bg2 {[%emt 0:00:15]} O-O {[%emt 0:00:26]} 8. O-O {[%emt 0:00:26]} b5 {[%emt 0:06:34]} 9. e5 {[%emt 0:00:23]} Ne8 {[%emt 0:03:45]} 10. a4 {[%emt 0:00:46]} b4 {[%emt 0:01:34]} 11. Be3 {[%emt 0:00:07]} Nc7 {[%emt 0:07:04]} 12. Nbd2 {[%emt 0:02:19]} Na5 {[%emt 0:09:22]} 13. Nb3 {[%emt 0:04:27]} Na6 {[%emt 0:00:28]} 14. Qf2 {[%emt 0:17:43]} Qc7 {[%emt 0:00:39]} 15. Rfc1 {[%emt 0:17:06]} Bb7 {[%emt 0:02:28]} 16. h4 {[%emt 0:03:17]} Rac8 {[%emt 0:03:45]} 17. Kh2 {[%emt 0:02:10]} Nb8 {[%emt 0:09:19]} 18. Qe2 {[%emt 0:05:40]} Nd7 {[%emt 0:03:27]} 19. Nxa5 {[%emt 0:08:41]} Qxa5 {[%emt 0:00:07]} 20. b3 {[%emt 0:00:18]} Ba6 {[%emt 0:04:48]} 21. Qd1 {[%emt 0:03:23]} 1/2-1/2

[Event "NOR-chT Codanserien 2017-18"]
[Site "Oslo"]
[Date "2017.12.02"]
[Round "2"]
[White "Hobber, Anders"]
[Black "Mihajlov, Sebastian"]
[Result "1/2-1/2"]
[ECO "A48"]
[WhiteElo "2290"]
[BlackElo "2379"]
[Annotator "ChessBase"]
[PlyCount "59"]
[EventDate "2017.??.??"]
[EventType "team-tourn"]
[EventCountry "NOR"]
[SourceTitle "playchess.com"]
[Source "ChessBase"]
[SourceQuality "1"]
[TimeControl "40/5400+30:1800+30"]

1. d4 {[%emt 0:00:00]} Nf6 {[%emt 0:00:28]} 2. Nf3 {[%emt 0:01:44]} g6 {[%emt 0:00:12]} 3. c3 {[%emt 0:03:51]} Bg7 {[%emt 0:00:24]} 4. Bg5 {[%emt 0:00:25]} O-O {[%emt 0:00:20]} 5. Nbd2 {[%emt 0:00:43]} d6 {[%emt 0:02:38]} 6. e4 {[%emt 0:02:27]} c5 {[%emt 0:00:44]} 7. dxc5 {[%emt 0:00:54]} dxc5 {[%emt 0:00:27]} 8. Bc4 {[%emt 0:00:26]} h6 {[%emt 0:03:06]} 9. Bh4 {[%emt 0:03:02]} Nh5 {[%emt 0:02:27]} 10. O-O {[%emt 0:01:22]} Nc6 {[%emt 0:03:03]} 11. Qe2 {[%emt 0:25:46]} Qc7 {[%emt 0:05:46]} 12. Qe3 {[%emt 0:06:14]} Na5 {[%emt 0:05:08]} 13. Bd3 {[%emt 0:08:26]} g5 {[%emt 0:20:42]} 14. Bg3 {[%emt 0:02:03]} Nxg3 {[%emt 0:00:06]} 15. hxg3 {[%emt 0:01:17]} e5 {[%emt 0:04:47]} 16. Nc4 {[%emt 0:01:39]} Be6 {[%emt 0:01:15]} 17. Qe2 {[%emt 0:04:36]} Nxc4 {[%emt 0:03:12]} 18. Bxc4 {[%emt 0:00:07]} Bg4 {[%emt 0:01:21]} 19. Rfd1 {[%emt 0:03:35]} Rad8 {[%emt 0:00:21]} 20. Rd5 {[%emt 0:03:59]} Rxd5 {[%emt 0:04:27]} 21. Bxd5 {[%emt 0:00:04]} Rd8 {[%emt 0:00:19]} 22. Qc4 {[%emt 0:06:59]} Bxf3 {[%emt 0:00:09]} 23. gxf3 {[%emt 0:00:05]} Rd6 {[%emt 0:01:06]} 24. Qb5 {[%emt 0:02:37]} Rb6 {[%emt 0:01:59]} 25. Qe8+ {[%emt 0:01:18]} Bf8 {[%emt 0:00:01]} 26. b3 {[%emt 0:00:49]} Rf6 {[%emt 0:03:01]} 27. Kg2 {[%emt 0:01:30]} Kg7 {[%emt 0:01:29]} 28. Rd1 {[%emt 0:02:48]} b6 {[%emt 0:03:53]} 29. Bc4 {[%emt 0:02:21]} Rd6 {[%emt 0:01:08]} 30. Rxd6 {[%emt 0:01:54]} 1/2-1/2

[Event "NOR-chT Codanserien 2017-18"]
[Site "Oslo"]
[Date "2017.12.02"]
[Round "2"]
[White "Borresen, Georg S"]
[Black "Mikalsen, Erlend"]
[Result "1-0"]
[ECO "A22"]
[WhiteElo "2253"]
[BlackElo "2312"]
[Annotator "ChessBase"]
[PlyCount "65"]
[EventDate "2017.??.??"]
[EventType "team-tourn"]
[EventCountry "NOR"]
[SourceTitle "playchess.com"]
[Source "ChessBase"]
[SourceQuality "1"]
[TimeControl "40/5400+30:1800+30"]

1. c4 {[%emt 0:00:00]} e5 {[%emt 0:04:08]} 2. Nc3 {[%emt 0:00:00]} Bb4 {[%emt 0:00:07]} 3. g3 {[%emt 0:00:38]} Nf6 {[%emt 0:00:55]} 4. Bg2 {[%emt 0:00:11]} O-O {[%emt 0:00:39]} 5. Qc2 {[%emt 0:00:31]} c6 {[%emt 0:06:06]} 6. Nf3 {[%emt 0:06:00]} Re8 {[%emt 0:01:45]} 7. O-O {[%emt 0:00:59]} d5 {[%emt 0:02:46]} 8. cxd5 {[%emt 0:03:36]} cxd5 {[%emt 0:00:11]} 9. d4 {[%emt 0:00:54]} e4 {[%emt 0:00:18]} 10. Ne5 {[%emt 0:03:08]} Nc6 {[%emt 0:00:53]} 11. Nxc6 {[%emt 0:00:08]} bxc6 {[%emt 0:00:06]} 12. Na4 {[%emt 0:01:14]} Bd7 {[%emt 0:07:07]} 13. Nc5 {[%emt 0:02:25]} Bg4 {[%emt 0:01:01]} 14. f3 {[%emt 0:24:51]} exf3 {[%emt 0:02:04]} 15. exf3 {[%emt 0:00:14]} Bh5 {[%emt 0:03:01]} 16. a3 {[%emt 0:17:23]} Bg6 {[%emt 0:00:36]} 17. Qf2 {[%emt 0:03:14]} Qa5 {[%emt 0:05:16]} 18. Be3 {[%emt 0:03:50]} Bxc5 {[%emt 0:00:25]} 19. dxc5 {[%emt 0:00:03]} Qb5 {[%emt 0:02:08]} 20. Rfe1 {[%emt 0:01:21]} a5 {[%emt 0:02:18]} 21. Bd4 {[%emt 0:00:39]} Nd7 {[%emt 0:00:06]} 22. Bh3 {[%emt 0:00:24]} Nf8 {[%emt 0:00:04]} 23. Rxe8 {[%emt 0:05:54]} Rxe8 {[%emt 0:00:06]} 24. Re1 {[%emt 0:00:04]} Rxe1+ {[%emt 0:02:52]} 25. Qxe1 {[%emt 0:00:33]} Qd3 {[%emt 0:01:17]} 26. Qe3 {[%emt 0:10:26]} Qd1+ {[%emt 0:00:05]} 27. Kf2 {[%emt 0:00:27]} Qh1 {[%emt 0:02:04]} 28. Qe8 {[%emt 0:02:17]} Qxh2+ {[%emt 0:01:27]} 29. Bg2 {[%emt 0:00:01]} h5 {[%emt 0:02:05]} 30. Qc8 {[%emt 0:12:03]} h4 {[%emt 0:02:14]} 31. Be5 {[%emt 0:00:19]} f6 {[%emt 0:14:10]} 32. Bd6 {[%emt 0:00:01]} Kh7 {[%emt 0:00:04]} 33. g4 {[%emt 0:00:43]} 1-0

[Event "NOR-chT Codanserien 2017-18"]
[Site "Oslo"]
[Date "2017.12.02"]
[Round "2"]
[White "Gudbrandsen, Gustav"]
[Black "Al-Tarbosh, Ward"]
[Result "1/2-1/2"]
[ECO "C11"]
[WhiteElo "2235"]
[BlackElo "2266"]
[Annotator "ChessBase"]
[PlyCount "59"]
[EventDate "2017.??.??"]
[EventType "team-tourn"]
[EventCountry "NOR"]
[SourceTitle "playchess.com"]
[Source "ChessBase"]
[SourceQuality "1"]
[TimeControl "40/5400+30:1800+30"]

1. e4 {[%emt 0:00:00]} e6 {[%emt 0:00:04]} 2. d4 {[%emt 0:00:12]} d5 {[%emt 0:00:06]} 3. Nc3 {[%emt 0:00:38]} Nf6 {[%emt 0:00:03]} 4. e5 {[%emt 0:00:35]} Nfd7 {[%emt 0:00:04]} 5. f4 {[%emt 0:00:25]} c5 {[%emt 0:00:07]} 6. Nf3 {[%emt 0:00:19]} Nc6 {[%emt 0:00:02]} 7. Be3 {[%emt 0:00:34]} a6 {[%emt 0:00:04]} 8. Qd2 {[%emt 0:02:10]} b5 {[%emt 0:00:07]} 9. dxc5 {[%emt 0:07:10]} Bxc5 {[%emt 0:00:05]} 10. Bxc5 {[%emt 0:04:37]} Nxc5 {[%emt 0:00:16]} 11. b4 {[%emt 0:02:12]} Nd7 {[%emt 0:47:31]} 12. a3 {[%emt 0:02:48]} Bb7 {[%emt 0:17:52]} 13. Bd3 {[%emt 0:05:11]} Qb6 {[%emt 0:00:32]} 14. Qf2 {[%emt 0:04:18]} Qxf2+ {[%emt 0:01:03]} 15. Kxf2 {[%emt 0:00:09]} Nb6 {[%emt 0:04:04]} 16. Rhe1 {[%emt 0:05:58]} Rc8 {[%emt 0:03:37]} 17. Ne2 {[%emt 0:03:10]} Nc4 {[%emt 0:01:51]} 18. Ned4 {[%emt 0:01:57]} Nxd4 {[%emt 0:00:45]} 19. Nxd4 {[%emt 0:00:24]} Ke7 {[%emt 0:01:49]} 20. Nb3 {[%emt 0:02:40]} Rc7 {[%emt 0:00:06]} 21. a4 {[%emt 0:09:08]} bxa4 {[%emt 0:01:01]} 22. Nc5 {[%emt 0:09:55]} Rb8 {[%emt 0:14:41]} 23. Bxc4 {[%emt 0:16:31]} dxc4 {[%emt 0:00:13]} 24. c3 {[%emt 0:01:34]} a5 {[%emt 0:00:35]} 25. Nxb7 {[%emt 0:01:17]} Rcxb7 {[%emt 0:01:39]} 26. bxa5 {[%emt 0:00:18]} Rb3 {[%emt 0:00:53]} 27. Rxa4 {[%emt 0:00:30]} Rxc3 {[%emt 0:00:03]} 28. a6 {[%emt 0:00:58]} Rc2+ {[%emt 0:00:04]} 29. Re2 {[%emt 0:05:26]} Rxe2+ 30. Kxe2 1/2-1/2

[Event "NOR-chT Codanserien 2017-18"]
[Site "Oslo"]
[Date "2017.12.02"]
[Round "2"]
[White "Moen, Ole Christian"]
[Black "Hagesather, Ellen"]
[Result "1/2-1/2"]
[ECO "B15"]
[WhiteElo "2178"]
[BlackElo "2126"]
[Annotator "NA"]
[PlyCount "75"]
[EventDate "2017.??.??"]
[EventType "team-tourn"]
[EventCountry "NOR"]
[SourceTitle "playchess.com"]
[Source "ChessBase"]
[SourceQuality "1"]
[TimeControl "40/5400+30:1800+30"]

1. e4 {[%emt 0:00:00]} c6 {[%emt 0:00:07]} 2. d4 {[%emt 0:01:33]} d5 {[%emt 0:02:11]} 3. Nc3 {[%emt 0:01:04]} dxe4 {[%emt 0:00:11]} 4. Nxe4 {[%emt 0:00:09]} Nf6 {[%emt 0:00:05]} 5. Nxf6+ {[%emt 0:00:31]} exf6 {[%emt 0:00:06]} 6. Bc4 {[%emt 0:02:42]} Be7 {[%emt 0:03:07]} 7. Ne2 {[%emt 0:02:13]} O-O {[%emt 0:02:33] B15: Caro-Kann: 3 Nc3: 3...g6 and 3...dxe4 4 Nxe4 Nf6 5 Nxf6+ exf6} (7... Nd7 8. O-O O-O 9. Ng3 b5 10. Bd3 g6 11. c3 a6 12. Re1 Bb7 13. a4 Nb6 14. a5 Nd5 15. Bd2 c5 16. c4 bxc4 17. Bxc4 cxd4 18. Bh6 Re8 19. Qxd4 Nb4 20. Qxd8 Raxd8 {½-½ (20) Todorovic,G (2461)-Radlovacki,J (2322) Stari Banovci 2016}) 8. O-O {[%emt 0:00:35]} Bd6 {[%emt 0:06:06]} 9. Bf4 {[%emt 0:01:19]} Bg4 {[%emt 0:03:21]} 10. f3 $146 {[%emt 0:00:36]} ({Predecessor:} 10. Bxd6 Qxd6 11. f3 Be6 12. Bxe6 fxe6 13. Qd3 Na6 14. a3 Rad8 15. Rad1 {0-1 (43) Moori,H (1689)-Hasidume,S (2194) ICCF email 2006}) 10... Bf5 {[%emt 0:01:35]} 11. c3 {[%emt 0:02:44]} Bxf4 {[%emt 0:07:19]} 12. Nxf4 {[%emt 0:00:13]} Qd6 {[%emt 0:00:08]} 13. Qd2 {[%emt 0:00:47]} Nd7 {[%emt 0:04:36]} 14. Rad1 {[%emt 0:02:32]} h6 {[%emt 0:03:35]} 15. Rfe1 {[%emt 0:03:05]} Rfe8 {[%emt 0:04:50]} 16. Bd3 {[%emt 0:02:21]} Bxd3 {[%emt 0:01:18]} 17. Nxd3 {[%emt 0:00:10]} g5 {[%emt 0:03:17]} 18. Qf2 {[%emt 0:09:30]} Kf8 {[%emt 0:07:48]} 19. Qg3 {[%emt 0:02:44]} Qxg3 {[%emt 0:00:35]} 20. hxg3 {[%emt 0:00:09]} f5 {[%emt 0:08:02]} 21. Kf2 {[%emt 0:00:26]} Re6 {[%emt 0:01:56]} 22. Rxe6 {[%emt 0:08:53]} fxe6 {[%emt 0:00:25]} 23. Ne5 {[%emt 0:00:31]} Nxe5 {[%emt 0:07:54]} 24. dxe5 {[%emt 0:00:38]} Ke7 {[%emt 0:00:06]} 25. Ke3 {[%emt 0:02:02]} Rd8 {[%emt 0:04:00]} 26. Rh1 {[%emt 0:00:21]} Rh8 {[%emt 0:00:19]} 27. g4 {[%emt 0:00:33]} f4+ {[%emt 0:04:35]} 28. Ke4 {[%emt 0:00:29]} Kd7 {[%emt 0:01:17]} 29. Rd1+ {[%emt 0:02:16]} Ke7 {[%emt 0:00:18]} 30. b4 {[%emt 0:04:02]} h5 {[%emt 0:01:59]} 31. gxh5 {[%emt 0:03:27]} Rxh5 {[%emt 0:00:10]} 32. c4 {[%emt 0:00:29]} Rh2 {[%emt 0:01:48]} 33. Rd2 {[%emt 0:00:24]} Rh1 {[%emt 0:01:38]} 34. Rb2 {[%emt 0:01:40]} Re1+ {[%emt 0:02:02]} 35. Kd4 {[%emt 0:00:07]} Rd1+ {[%emt 0:00:18]} 36. Ke4 $17 {[%emt 0:00:26]} Re1+ {[%emt 0:00:17]} 37. Kd4 {[%emt 0:00:05]} Rd1+ {[%emt 0:00:05]} 38. Ke4 {[%emt 0:00:17]} 1/2-1/2

[Event "NOR-chT Codanserien 2017-18"]
[Site "Oslo"]
[Date "2017.12.02"]
[Round "2"]
[White "Mikalsen, Harald"]
[Black "Flaata, Alexander R"]
[Result "1-0"]
[ECO "A56"]
[WhiteElo "2030"]
[BlackElo "2103"]
[Annotator "ChessBase"]
[PlyCount "82"]
[EventDate "2017.??.??"]
[EventType "team-tourn"]
[EventCountry "NOR"]
[SourceTitle "playchess.com"]
[Source "ChessBase"]
[SourceQuality "1"]
[TimeControl "40/5400+30:1800+30"]

1. d4 {[%emt 0:00:00]} Nf6 {[%emt 0:14:14]} 2. c4 {[%emt 0:00:00]} c5 {[%emt 0:00:19]} 3. Nf3 {[%emt 0:01:47]} g6 {[%emt 0:00:56]} 4. Nc3 {[%emt 0:00:53]} cxd4 {[%emt 0:00:15]} 5. Nxd4 {[%emt 0:00:34]} Bg7 {[%emt 0:00:31]} 6. e4 {[%emt 0:00:55]} Nc6 {[%emt 0:01:43]} 7. Nb3 {[%emt 0:02:06]} O-O {[%emt 0:00:30]} 8. Be2 {[%emt 0:00:27]} d6 {[%emt 0:01:11]} 9. Be3 {[%emt 0:05:30]} b6 {[%emt 0:02:14]} 10. f3 {[%emt 0:04:39]} Ba6 {[%emt 0:06:03]} 11. Nd4 {[%emt 0:04:49]} Rc8 {[%emt 0:03:16]} 12. Ncb5 {[%emt 0:08:49]} Nxd4 {[%emt 0:03:58]} 13. Bxd4 {[%emt 0:02:27]} Bxb5 {[%emt 0:07:08]} 14. cxb5 {[%emt 0:00:10]} Qc7 {[%emt 0:01:04]} 15. O-O {[%emt 0:04:38]} Nd7 {[%emt 0:06:02]} 16. Bxg7 {[%emt 0:02:16]} Kxg7 {[%emt 0:00:07]} 17. Rc1 {[%emt 0:00:47]} Qb7 {[%emt 0:03:31]} 18. Qd4+ {[%emt 0:00:28]} Kg8 {[%emt 0:01:40]} 19. Bc4 {[%emt 0:00:19]} Nf6 {[%emt 0:02:23]} 20. g4 {[%emt 0:00:51]} h6 {[%emt 0:01:54]} 21. Rc3 {[%emt 0:14:34]} Qd7 {[%emt 0:03:28]} 22. Rfc1 {[%emt 0:05:27]} Kh7 {[%emt 0:01:43]} 23. Be2 {[%emt 0:06:31]} Rxc3 {[%emt 0:04:42]} 24. Qxc3 {[%emt 0:00:10]} Qe6 {[%emt 0:06:32]} 25. a4 {[%emt 0:08:03]} d5 {[%emt 0:02:23]} 26. e5 {[%emt 0:05:21]} Nd7 {[%emt 0:00:34]} 27. f4 {[%emt 0:01:56]} Kg8 {[%emt 0:07:17]} 28. Qc6 {[%emt 0:01:52]} Nc5 {[%emt 0:02:19]} 29. b4 {[%emt 0:00:53]} Nxa4 {[%emt 0:01:47]} 30. Qc2 {[%emt 0:03:24]} g5 {[%emt 0:05:15]} 31. Qxa4 {[%emt 0:05:54]} gxf4 {[%emt 0:00:06]} 32. Qa1 {[%emt 0:03:40]} f6 {[%emt 0:02:51]} 33. Bf3 {[%emt 0:01:20]} Rd8 {[%emt 0:01:25]} 34. Re1 {[%emt 0:01:58]} f5 {[%emt 0:01:26]} 35. gxf5 {[%emt 0:00:36]} Qxf5 {[%emt 0:00:07]} 36. e6 {[%emt 0:01:12]} d4 {[%emt 0:00:27]} 37. Qxa7 {[%emt 0:00:50]} Kf8 {[%emt 0:01:12]} 38. Qxb6 {[%emt 0:00:19]} Rd6 {[%emt 0:00:50]} 39. Qxd6 {[%emt 0:00:53]} Qg5+ {[%emt 0:05:36]} 40. Kh1 {[%emt 0:00:11]} exd6 {[%emt 0:30:36]} 41. e7+ {[%emt 0:30:58]} Qxe7 {[%emt 0:00:00]} 1-0

[Event "NOR-chT Codanserien 2017-18"]
[Site "Oslo"]
[Date "2017.12.03"]
[Round "3"]
[White "Mikalsen, Erlend"]
[Black "Mihajlov, Sebastian"]
[Result "1-0"]
[ECO "B19"]
[WhiteElo "2312"]
[BlackElo "2379"]
[Annotator "NA"]
[PlyCount "71"]
[EventDate "2017.??.??"]
[EventType "team-tourn"]
[EventCountry "NOR"]
[SourceTitle "playchess.com"]
[Source "ChessBase"]
[SourceQuality "1"]
[TimeControl "40/5400+30:1800+30"]

1. e4 {[%emt 0:00:44]} c6 {[%emt 0:03:59]} 2. d4 {[%emt 0:02:10]} d5 {[%emt 0:00:11]} 3. Nc3 {[%emt 0:00:10]} dxe4 {[%emt 0:00:06]} 4. Nxe4 {[%emt 0:00:03]} Bf5 {[%emt 0:00:07]} 5. Ng3 {[%emt 0:00:03]} Bg6 {[%emt 0:00:06]} 6. h4 {[%emt 0:00:02]} h6 {[%emt 0:00:07]} 7. Nf3 {[%emt 0:00:02]} Nd7 {[%emt 0:00:12]} 8. h5 {[%emt 0:00:04]} Bh7 {[%emt 0:00:05]} 9. Bd3 {[%emt 0:00:02]} Bxd3 {[%emt 0:00:08]} 10. Qxd3 {[%emt 0:00:03]} e6 {[%emt 0:00:12]} 11. Bf4 {[%emt 0:00:09]} Bb4+ {[%emt 0:00:31]} 12. c3 {[%emt 0:00:10]} Be7 {[%emt 0:00:19]} 13. O-O-O {[%emt 0:04:37]} Ngf6 {[%emt 0:00:11] B19: Caro-Kann (Hauptvariante)} 14. Ne4 {[%emt 0:00:38]} (14. Kb1 O-O 15. c4 a5 16. Nf1 b5 17. c5 Nd5 18. Bd2 Qc7 19. g4 Rad8 20. Ng3 N7f6 21. g5 hxg5 22. Nxg5 {1-0 (63) Svidler,P (2765)-Ivanchuk,V (2729) Monte Carlo 2006}) 14... Nxe4 {[%emt 0:00:12]} 15. Qxe4 {[%emt 0:00:03]} Nf6 {[%emt 0:00:22]} 16. Qc2 {[%emt 0:03:31]} O-O {[%emt 0:03:04]} 17. Kb1 {[%emt 0:02:06] LiveBook: 8 Games [#]} (17. g4 $5 {[%cal Rg4g5]}) 17... a5 $146 {[%emt 0:02:43]} ({Vorgänger:} 17... Bd6 18. Bxd6 Qxd6 19. Ne5 c5 20. g4 cxd4 21. f4 {1-0 (53) Noble,M (2497)-Carlsen,T (2641) ICCF email 2007}) 18. Rhg1 {[%emt 0:09:28]} (18. g4 $14) 18... Nxh5 {[%emt 0:03:00]} 19. Bc1 {[%emt 0:01:37]} Nf6 {[%emt 0:12:30]} 20. g4 {[%emt 0:00:39]} Qd5 {[%emt 0:01:50]} 21. Ne5 {[%emt 0:02:21]} Qe4 {[%emt 0:16:24]} 22. Rd3 {[%emt 0:00:06]} Nd5 {[%emt 0:00:03]} 23. f3 {[%emt 0:04:20]} Qh7 {[%emt 0:00:05]} 24. f4 {[%emt 0:02:12]} f6 25. Nf3 $1 {[%emt 0:01:13]} Bd6 {[%emt 0:01:54]} ({Better is} 25... g5 $15) 26. g5 {[%emt 0:05:36]} Bxf4 {[%emt 0:01:25]} 27. g6 {[%emt 0:00:04]} Qh8 {[%emt 0:00:06] [#]} 28. c4 $1 {[%emt 0:03:10]} Nb4 {[%emt 0:10:27]} 29. Qe2 {[%emt 0:00:07]} e5 {[%emt 0:02:30]} 30. Bxf4 {[%emt 0:02:24]} Nxd3 {[%emt 0:00:05]} 31. Qxd3 {[%emt 0:00:06]} exf4 {[%emt 0:00:08]} 32. Qf5 {[%emt 0:00:17]} Rae8 {[%emt 0:00:17]} 33. Qd7 $18 {[%emt 0:02:51]} h5 {[%emt 0:03:26]} 34. Qf5 {[%emt 0:02:19]} Re3 {[%emt 0:03:26]} 35. Rh1 {[%emt 0:00:04]} Rfe8 36. Rxh5 {[%emt 0:00:29]} 1-0